fUST/lending_fUST_20241221
["ID","MTS","AMOUNT","RATE_DAILY","PERIOD"]
[346125331,1734724250992,-500.0,0.00021917,6]
[346125332,1734724251001,-500.0,0.00021917,6]
[346125333,1734724251011,-2164.76,0.00021917,6]
[346125334,1734724251020,-604.50270762,0.00021917,6]
[346125335,1734724251029,-151.0,0.00021917,2]
[346125336,1734724251037,-651.41,0.00021917,6]
[346125337,1734724251046,-500.0,0.00021917,6]
[346125338,1734724251056,-500.0,0.00021917,6]
[346125339,1734724251064,-500.0,0.00021917,6]
[346125340,1734724251076,-151.0,0.00021917,2]
[346125341,1734724251086,-500.0,0.00021917,6]
[346125342,1734724251095,-542.06,0.00021917,6]
[346125343,1734724251106,-500.0,0.00021917,6]
[346125344,1734724251116,-4537.47,0.00021917,6]
[346125345,1734724251125,-511.10442521,0.00021917,6]
[346125346,1734724251136,-1916.19,0.00021917,6]
[346125347,1734724251147,-500.0,0.00021917,6]
[346125348,1734724251157,-854.52,0.00021917,6]
[346125349,1734724251167,-500.0,0.00021917,6]
[346125350,1734724251178,-500.0,0.00021917,6]
[346125351,1734724251187,-3904.71,0.00021917,6]
[346125352,1734724251196,-500.0,0.00021917,6]
[346125353,1734724251205,-500.0,0.00021917,6]
[346125354,1734724251214,-500.0,0.00021917,6]
[346125355,1734724251223,-500.0,0.00021917,6]
[346125356,1734724251232,-151.0,0.00021917,2]
[346125357,1734724251241,-500.0,0.00021917,6]
[346125358,1734724251251,-500.0,0.00021917,6]
[346125359,1734724251261,-736.68,0.00021917,6]
[346125360,1734724251270,-1203.95,0.00021917,6]
[346125361,1734724251279,-500.0,0.00021917,6]
[346125362,1734724251288,-500.0,0.00021917,6]
[346125363,1734724251298,-500.0,0.00021917,6]
[346125364,1734724251308,-500.0,0.00021917,6]
[346125365,1734724251317,-57889.75,0.00021917,6]
[346125366,1734724251327,-2056.82,0.00021917,6]
[346125367,1734724251337,-500.0,0.00021917,6]
[346125368,1734724251347,-500.0,0.00021917,6]
[346125369,1734724251357,-500.0,0.00021917,6]
[346125370,1734724251366,-500.0,0.00021917,6]
[346125371,1734724251376,-500.0,0.00021917,6]
[346125372,1734724251385,-795.59,0.00021917,6]
[346125373,1734724251395,-945.13,0.00021917,6]
[346125374,1734724251404,-500.0,0.00021917,6]
[346125375,1734724251413,-500.0,0.00021917,6]
[346125376,1734724251423,-500.0,0.00021917,6]
[346125377,1734724251432,-500.0,0.00021917,6]
[346125378,1734724251441,-967.623978,0.00021917,2]
[346125379,1734724251450,-500.0,0.00021917,6]
[346125380,1734724251463,-500.0,0.00021917,6]
[346125381,1734724251472,-1229.47,0.00021917,6]
[346125382,1734724251482,-7343.55,0.00021917,6]
[346125383,1734724251491,-500.0,0.00021917,6]
[346125384,1734724251500,-500.0,0.00021917,2]
[346125385,1734724251511,-2542.5,0.00021917,6]
[346125386,1734724251520,-967.623978,0.00021917,2]
[346125387,1734724251529,-500.0,0.00021917,6]
[346125388,1734724251539,-598.54,0.00021917,6]
[346125389,1734724251550,-750.71,0.00021917,6]
[346125390,1734724251560,-500.0,0.00021917,6]
[346125391,1734724251569,-500.0,0.00021917,6]
[346125392,1734724251579,-500.0,0.00021917,6]
[346125393,1734724251589,-2708.59,0.00021917,6]
[346125394,1734724251598,-500.0,0.00021917,6]
[346125395,1734724251608,-231.67979924,0.00021917,6]
[346125396,1734724251617,-500.0,0.00021917,6]
[346125397,1734724251627,-500.0,0.00021917,6]
[346125398,1734724251637,-151.0,0.00021917,2]
[346125399,1734724251646,-500.0,0.00021917,6]
[346125400,1734724251656,-500.0,0.00021917,6]
[346125401,1734724251665,-500.0,0.00021917,6]
[346125402,1734724251674,-500.0,0.00021917,6]
[346125403,1734724251684,-2231.54,0.00021917,6]
[346125404,1734724251694,-751.72,0.00021917,6]
[346125405,1734724251705,-506.12448524,0.00021917,6]
[346125406,1734724251716,-556.73,0.00021917,6]
[346125407,1734724251726,-500.0,0.00021917,6]
[346125408,1734724251735,-500.0,0.00021917,6]
[346125409,1734724251745,-500.0,0.00021917,6]
[346125410,1734724251755,-2124.02,0.00021917,6]
[346125411,1734724251766,-151.0,0.00021918,2]
[346125412,1734724251775,-241.622588,0.00021918,2]
[346125413,1734724251785,-500.0,0.00021973,2]
[346125414,1734724251794,-500.0,0.00021973,2]
[346125415,1734724251804,-500.0,0.00021973,2]
[346125416,1734724251812,-226.0,0.00022,2]
[346125417,1734724251818,-220.0,0.0002201,6]
[346125418,1734724251827,-151.0,0.0002206,7]
[346125419,1734724251836,-269.716418,0.0002206,7]
[346125420,1734724251846,-269.716418,0.0002206,7]
[346125421,1734724251855,-151.0,0.0002206,7]
[346125422,1734724251864,-151.0,0.0002206,7]
[346125423,1734724251873,-151.0,0.0002206,7]
[346125424,1734724251882,-340.557585,0.0002206,7]
[346125425,1734724251892,-340.557585,0.0002206,7]
[346125426,1734724251901,-151.0,0.0002206,7]
[346125427,1734724251910,-151.0,0.0002206,7]
[346125428,1734724251919,-228.506856,0.0002206,7]
[346125429,1734724251929,-151.0,0.0002206,7]
[346125430,1734724251938,-173.175396,0.0002206,7]
[346125431,1734724251947,-967.623978,0.0002206,7]
[346125432,1734724251957,-967.623978,0.0002206,7]
[346125433,1734724251966,-151.0,0.0002206,7]
[346125434,1734724251976,-151.0,0.0002206,7]
[346125435,1734724251985,-150.0,0.0002206,2]
[346125436,1734724251994,-2141.0,0.0002206,2]
[346125437,1734724252003,-533.0,0.0002206,2]
[346125438,1734724252014,-2380.0,0.0002206,2]
[346125439,1734724252024,-34470.0,0.0002206,2]
[346125440,1734724252033,-352.02932,0.00022105,2]
[346125441,1734724252042,-500.0,0.00022173,2]
[346125442,1734724252052,-500.0,0.00022173,2]
[346125443,1734724252061,-151.0,0.00022191,7]
[346125444,1734724252071,-151.0,0.00022191,7]
[346125445,1734724252085,-151.0,0.00022191,7]
[346125446,1734724252095,-151.0,0.00022191,7]
[346125447,1734724252105,-500.0,0.00022191,6]
[346125448,1734724252114,-151.0,0.00022191,7]
[346125449,1734724252124,-151.0,0.00022191,7]
[346125450,1734724252133,-500.0,0.00022191,6]
[346125451,1734724252142,-500.0,0.00022191,6]
[346125452,1734724252152,-500.0,0.00022191,6]
[346125453,1734724252162,-500.0,0.00022191,6]
[346125454,1734724252172,-500.0,0.00022191,6]
[346125455,1734724252180,-151.0,0.00022191,7]
[346125456,1734724252191,-151.0,0.00022191,7]
[346125457,1734724252201,-151.0,0.00022191,7]
[346125458,1734724252210,-500.0,0.00022191,6]
[346125459,1734724252220,-500.0,0.00022191,6]
[346125460,1734724252230,-500.0,0.00022191,6]
[346125461,1734724252240,-500.0,0.00022191,6]
[346125462,1734724252249,-500.0,0.00022191,6]
[346125463,1734724252259,-500.0,0.00022191,6]
[346125464,1734724252269,-151.0,0.00022191,7]
[346125465,1734724252279,-500.0,0.00022191,6]
[346125466,1734724252288,-151.0,0.00022191,7]
[346125467,1734724252297,-500.0,0.00022191,6]
[346125468,1734724252306,-423.22931254,0.00022191,6]
[346125469,1734724252315,-621.5254491,0.00022191,6]
[346125470,1734724252325,-500.0,0.00022191,6]
[346125471,1734724252334,-545.69,0.00022191,6]
[346125472,1734724252343,-500.0,0.00022191,6]
[346125473,1734724252472,-500.0,0.00022191,6]
[346125474,1734724252481,-500.0,0.00022191,6]
[346125475,1734724252491,-151.0,0.00022191,7]
[346125476,1734724252500,-158.946282,0.00022191,7]
[346125477,1734724252509,-500.0,0.00022191,6]
[346125478,1734724252520,-500.0,0.00022191,6]
[346125479,1734724252529,-500.0,0.00022191,6]
[346125480,1734724252539,-500.0,0.00022191,6]
[346125481,1734724252548,-500.0,0.00022191,6]
[346125482,1734724252557,-500.0,0.00022191,6]
[346125483,1734724252566,-500.0,0.00022191,6]
[346125484,1734724252576,-500.0,0.00022191,6]
[346125485,1734724252585,-500.0,0.00022191,6]
[346125486,1734724252594,-500.0,0.00022191,6]
[346125487,1734724252603,-500.0,0.00022191,6]
[346125488,1734724252612,-760.9,0.00022191,6]
[346125489,1734724252622,-151.0,0.00022191,7]
[346125490,1734724252631,-151.0,0.00022191,7]
[346125491,1734724252640,-151.0,0.00022191,7]
[346125492,1734724252649,-500.0,0.00022191,6]
[346125493,1734724252659,-500.0,0.00022191,6]
[346125494,1734724252668,-500.0,0.00022191,6]
[346125495,1734724252677,-666.85,0.00022191,6]
[346125496,1734724252687,-500.0,0.00022191,6]
[346125497,1734724252695,-188.8464176,0.00022191,6]
[346125498,1734724252705,-500.0,0.00022191,6]
[346125499,1734724252714,-500.0,0.00022191,6]
[346125500,1734724252723,-517.06,0.00022191,6]
[346125501,1734724252732,-500.0,0.00022191,6]
[346125502,1734724252741,-500.0,0.00022191,6]
[346125503,1734724252750,-500.0,0.00022191,6]
[346125504,1734724252760,-196.431731,0.00022191,7]
[346125505,1734724252769,-500.0,0.00022191,6]
[346125506,1734724252778,-500.0,0.00022191,6]
[346125507,1734724252787,-500.0,0.00022191,6]
[346125508,1734724252796,-500.0,0.00022191,6]
[346125509,1734724252805,-541.73,0.00022191,6]
[346125510,1734724252814,-500.0,0.00022191,6]
[346125511,1734724252824,-500.0,0.00022191,6]
[346125512,1734724252833,-500.0,0.00022191,6]
[346125513,1734724252842,-676.56,0.00022191,6]
[346125514,1734724252852,-500.0,0.00022191,6]
[346125515,1734724252861,-500.0,0.00022191,6]
[346125516,1734724252870,-500.0,0.00022191,6]
[346125517,1734724252880,-1182.25,0.00022191,6]
[346125518,1734724252889,-500.0,0.00022191,6]
[346125519,1734724252898,-1406.59,0.00022191,6]
[346125520,1734724252907,-500.0,0.00022191,6]
[346125521,1734724252916,-168.0,0.00022191,6]
[346125522,1734724252926,-500.0,0.00022191,6]
[346125523,1734724252936,-500.0,0.00022191,6]
[346125524,1734724252945,-1317.77,0.00022191,6]
[346125525,1734724252955,-218.10813913,0.00022191,6]
[346125532,1734724560280,162.440865,0.00013973,2]
[346125543,1734725146385,-1412.47395891,0.00020434,2]
[346125546,1734725159105,-314.31684232,0.00020434,2]
[346125549,1734725235123,-3273.20919877,0.00020434,2]
[346125550,1734725235147,-910.842244,0.00020673,2]
[346125551,1734725235169,-195.542756,0.00020848,2]
[346125552,1734725235190,-300.0,0.00020899,2]
[346125553,1734725235213,-5816.14395166,0.000209,2]
[346125619,1734725432024,-380.7,0.00020484,2]
[346125622,1734725432042,-836.92091706,0.00020484,2]
[346125624,1734725432051,-488.76408292,0.000209,2]
[346125960,1734725466930,490.0,0.00020162,2]
[346125961,1734725466953,303.91730785,0.00020162,2]
[346125963,1734726097907,166.379767,0.00013973,2]
[346125967,1734726351131,-860.57404947,0.00018457,2]
[346125970,1734726441093,-178.81607271,0.00018089,2]
[346125971,1734726454158,-830.19609568,0.00018089,2]
[346125972,1734726454185,-702.65846441,0.00018272,2]
[346125973,1734726454208,-176.13,0.00018865,2]
[346125974,1734726454231,-1306.33989876,0.00018865,2]
[346125975,1734726454256,-300.0,0.00018874,2]
[346125976,1734726454280,-3147.68241296,0.00018875,2]
[346125980,1734726545246,-7385.976737,0.0001829,2]
[346125981,1734726545267,-2423.5583171,0.00018589,2]
[346125982,1734726545288,-300.0,0.00018872,2]
[346125983,1734726545308,-300.0,0.00018873,2]
[346125984,1734726545329,-21752.31758704,0.00018875,2]
[346125985,1734726545350,-447.68152038,0.00018921,2]
[346125986,1734726545369,-292.1696319,0.00019021,2]
[346125987,1734726545391,-1467.52358797,0.00019099,2]
[346125988,1734726545410,-1223.9370245,0.00019121,2]
[346125989,1734726545430,-174.017135,0.00019178,2]
[346125990,1734726545450,-3064.2191286,0.00019297,2]
[346125991,1734726545472,-154.87609912,0.00019297,2]
[346125992,1734726545494,-9361.52575458,0.00019387,2]
[346125993,1734726545517,-511.50366513,0.00019436,2]
[346125994,1734726545539,-749.819429,0.00019438,2]
[346125995,1734726545563,-9361.52575458,0.00019583,2]
[346125996,1734726545586,-152.0,0.00019633,2]
[346125997,1734726545611,-1467.52358794,0.00019744,2]
[346125998,1734726545634,-500.0,0.00019758,2]
[346125999,1734726545658,-500.0,0.00019758,2]
[346126000,1734726545679,-500.0,0.00019758,2]
[346126001,1734726545704,-500.0,0.00019758,2]
[346126002,1734726545726,-500.0,0.00019758,2]
[346126003,1734726545751,-500.0,0.00019758,2]
[346126004,1734726545774,-500.0,0.00019758,2]
[346126005,1734726545797,-500.0,0.00019758,2]
[346126006,1734726545821,-500.0,0.00019758,2]
[346126007,1734726545842,-500.0,0.00019758,2]
[346126008,1734726545864,-500.0,0.00019758,2]
[346126009,1734726545885,-632.5897102,0.00019758,2]
[346126010,1734726545906,-422.20171708,0.00019758,2]
[346126011,1734726545927,-500.0,0.00019758,2]
[346126012,1734726545949,-500.0,0.00019758,2]
[346126013,1734726545970,-500.0,0.00019758,2]
[346126014,1734726545991,-500.0,0.00019758,2]
[346126015,1734726546011,-500.0,0.00019758,2]
[346126016,1734726546032,-241.61503519,0.00019758,2]
[346126017,1734726546054,-156.72233344,0.00019758,2]
[346126018,1734726546077,-500.0,0.00019758,2]
[346126019,1734726546098,-500.0,0.00019758,2]
[346126020,1734726546119,-500.0,0.00019758,2]
[346126021,1734726546140,-500.0,0.00019758,2]
[346126022,1734726546163,-500.0,0.00019758,2]
[346126023,1734726546184,-500.0,0.00019758,2]
[346126024,1734726546205,-500.0,0.00019758,2]
[346126025,1734726546228,-500.0,0.00019758,2]
[346126026,1734726546250,-500.0,0.00019758,2]
[346126027,1734726546271,-500.0,0.00019758,2]
[346126028,1734726546292,-500.0,0.00019758,2]
[346126029,1734726546311,-500.0,0.00019758,2]
[346126030,1734726546333,-500.0,0.00019758,2]
[346126031,1734726546354,-446.57343298,0.00019758,2]
[346126032,1734726546375,-576.13664606,0.00019758,2]
[346126033,1734726546396,-250.0,0.00019758,2]
[346126034,1734726546420,-500.0,0.00019758,2]
[346126035,1734726546577,-500.0,0.00019758,2]
[346126036,1734726546601,-500.0,0.00019758,2]
[346126037,1734726546623,-500.0,0.00019758,2]
[346126038,1734726546645,-500.0,0.00019758,2]
[346126039,1734726546668,-500.0,0.00019758,2]
[346126040,1734726546690,-500.0,0.00019758,2]
[346126041,1734726546712,-500.0,0.00019758,2]
[346126042,1734726546738,-500.0,0.00019758,2]
[346126043,1734726546759,-500.0,0.00019758,2]
[346126044,1734726546781,-309.31781435,0.00019758,2]
[346126045,1734726546804,-500.0,0.00019758,2]
[346126046,1734726546831,-500.0,0.00019758,2]
[346126047,1734726546851,-600.0,0.00019758,2]
[346126048,1734726546873,-500.0,0.00019758,2]
[346126049,1734726546894,-370.0,0.00019758,2]
[346126050,1734726546915,-500.0,0.00019758,2]
[346126051,1734726546936,-500.0,0.00019758,2]
[346126052,1734726546957,-500.0,0.00019758,2]
[346126053,1734726546980,-500.0,0.00019758,2]
[346126054,1734726547002,-500.0,0.00019758,2]
[346126055,1734726547024,-500.0,0.00019758,2]
[346126056,1734726547046,-500.0,0.00019758,2]
[346126057,1734726547068,-500.0,0.00019758,2]
[346126058,1734726547090,-500.0,0.00019758,2]
[346126059,1734726547112,-500.0,0.00019758,2]
[346126060,1734726547133,-500.0,0.00019758,2]
[346126061,1734726547155,-500.0,0.00019758,2]
[346126062,1734726547177,-500.0,0.00019758,2]
[346126063,1734726547203,-550.0,0.00019758,2]
[346126064,1734726547229,-500.0,0.00019758,2]
[346126065,1734726547252,-9361.52575458,0.00019966,2]
[346126066,1734726547273,-180.81588463,0.0002,2]
[346126067,1734726547294,-9064.36393997,0.0002,2]
[346126068,1734726547317,-353.0560586,0.0002,2]
[346126069,1734726547341,-193.0,0.00020074,2]
[346126070,1734726547363,-7436.31571644,0.00020169,2]
[346126071,1734726547461,22340.333454,0.00019178,11]
[346126076,1734726569116,-374.909715,0.0002003,2]
[346126077,1734726569137,-115.090285,0.00020169,2]
[346126113,1734726632148,-1810.11975314,0.00020169,2]
[346126115,1734726632158,-156.03062887,0.00020262,2]
[346126117,1734726632167,-206.74977017,0.00020266,2]
[346126119,1734726632177,-1100.64269099,0.000204,2]
[346126122,1734726632198,-300.0,0.00020499,2]
[346126124,1734726632208,-300.0,0.00020499,2]
[346126126,1734726632219,-2941.58457125,0.000205,2]
[346126129,1734726632232,-21227.51179105,0.000205,2]
[346126131,1734726632244,-962.28696471,0.000205,2]
[346126135,1734726632261,-16050.33982788,0.000205,2]
[346126137,1734726632273,-389.683,0.000205,2]
[346126140,1734726632286,-5560.36939329,0.000205,2]
[346126143,1734726632298,-2818.06999994,0.000205,2]
[346126146,1734726632310,-2242.335,0.000205,2]
[346126151,1734726632322,-1500.34992,0.000205,2]
[346126154,1734726632334,-367.73,0.000205,2]
[346126257,1734726638095,-459.17663447,0.00020499,2]
[346126258,1734726638109,-250.0,0.00020499,2]
[346126259,1734726638120,-91.71255948,0.00020499,2]
[346126260,1734726638131,-408.28744052,0.00020499,2]
[346126261,1734726638140,-312.14642382,0.00020499,2]
[346126262,1734726638150,-430.0,0.00020499,2]
[346126263,1734726638160,-400.0,0.00020499,2]
[346126264,1734726638169,-175.12629401,0.00020499,2]
[346126265,1734726638179,-500.0,0.00020499,2]
[346126266,1734726638189,-332.95260366,0.00020499,2]
[346126267,1734726638198,-7741.43410799,0.000205,2]
[346126268,1734726638209,-1180.0,0.000205,2]
[346126274,1734726640155,-64639.15346564,0.000205,2]
[346126275,1734726640165,-17071.88525601,0.000205,2]
[346126277,1734726640174,-241.721439,0.00020521,2]
[346126278,1734726640185,-171.624541,0.00020572,2]
[346126279,1734726640195,-208.41694408,0.00020591,2]
[346126280,1734726640206,-1870.61461584,0.00020591,2]
[346126281,1734726640216,-196.00107369,0.00020591,2]
[346126282,1734726640225,-152.0,0.00020639,2]
[346126283,1734726640235,-9361.5257546,0.00020675,2]
[346126284,1734726640245,-241.721439,0.00020712,2]
[346126285,1734726640254,-738.7399261,0.00020734,2]
[346126286,1734726640264,-1100.64269095,0.00020859,2]
[346126287,1734726640273,-241.721439,0.00020904,2]
[346126288,1734726640282,-241.721439,0.00021096,2]
[346126289,1734726640291,-9361.5257546,0.00021256,2]
[346126290,1734726640301,-241.721439,0.00021288,2]
[346126291,1734726640310,-1100.64269095,0.00021318,2]
[346126292,1734726640319,-241.721439,0.00021479,2]
[346126293,1734726640328,-524.352,0.000216,2]
[346126294,1734726640337,-241.721439,0.00021671,2]
[346126295,1734726640346,-1100.64269095,0.00021777,2]
[346126296,1734726640355,-3000.0,0.000218,2]
[346126297,1734726640365,-3000.0,0.0002181,2]
[346126298,1734726640374,-614.54739023,0.00021817,2]
[346126299,1734726640386,-1019.0,0.00021817,2]
[346126300,1734726640397,-2216.05845621,0.00021817,2]
[346126301,1734726640408,-1264.94827754,0.00021817,2]
[346126302,1734726640417,-1556.94577535,0.0002182,2]
[346126392,1734726643061,-684.74293365,0.0002182,2]
[346126404,1734726643170,-652.76748279,0.0002182,2]
[346126726,1734727217509,166.379767,0.00013973,2]
[346126728,1734727547131,-1670.17871384,0.00020097,2]
[346126729,1734727637103,-193.4235359,0.00020155,2]
[346126730,1734727637129,-2023.66150205,0.00020207,2]
[346126731,1734727647124,-115.30236305,0.00020207,2]
[346126732,1734727647148,-187.454857,0.00020288,2]
[346126733,1734727647170,-349.98968914,0.000203,2]
[346126734,1734727647191,-196.00107369,0.000204,2]
[346126735,1734727647212,-425.4546305,0.00020474,2]
[346126736,1734727647234,-300.0,0.00020724,2]
[346126737,1734727647256,-22114.4938927,0.00020725,2]
[346126738,1734727647278,-501.989,0.0002108,2]
[346126739,1734727647299,-550.32134551,0.0002172,2]
[346126740,1734727647321,-666.0,0.00021817,2]
[346126741,1734727647343,-4171.6849671,0.00021817,2]
[346126742,1734727647367,-105.54380821,0.0002182,2]
[346126743,1734727647388,-3000.0,0.0002183,2]
[346126744,1734727647410,-3000.0,0.0002184,2]
[346126745,1734727647432,-3000.0,0.0002185,2]
[346126746,1734727647452,-3000.0,0.0002186,2]
[346126747,1734727647473,-3000.0,0.0002187,2]
[346126748,1734727647653,-3000.0,0.0002188,2]
[346126749,1734727647675,-2637.44717644,0.0002189,2]
[346126818,1734727832584,-2245.98118728,0.00020421,2]
[346126820,1734727832594,-13.96725188,0.00020627,2]
[346126822,1734727832605,-157.65728912,0.00020627,2]
[346126825,1734727832615,-666.0,0.00021817,2]
[346126827,1734727832624,-362.55282356,0.0002189,2]
[346126828,1734727832634,-159.729,0.0002189,2]
[346126830,1734727832643,-300.0,0.00021893,2]
[346126833,1734727832652,-150.0,0.00021894,2]
[346126835,1734727832663,-533.0,0.00021894,2]
[346126837,1734727832672,-781.76472501,0.00021894,2]
[346127340,1734727838537,-1359.23527499,0.00021894,2]
[346127341,1734727838547,-2367.0,0.00021894,2]
[346127342,1734727838556,-1865.06281427,0.000219,2]
[346127343,1734727838572,-555.255,0.000219,2]
[346127344,1734727839379,-246.34278199,0.000219,2]
[346127345,1734727839391,-996.49851774,0.000219,2]
[346127346,1734727839402,-505.0,0.000219,9]
[346127347,1734727839411,-4825.05481858,0.00021901,2]
[346127348,1734727839422,-10190.0,0.00021901,2]
[346127349,1734727839434,-9692.7,0.00021901,2]
[346127370,1734727840395,-9762.24518142,0.00021901,2]
[346127371,1734727840404,-10612.83652078,0.0002191,7]
[346127372,1734727840414,-222.43350155,0.00021916,2]
[346127373,1734727840424,-166.07879723,0.00021916,2]
[346127374,1734727840434,-214.91505907,0.00021916,2]
[346127375,1734727840444,-160.0,0.00021916,2]
[346127376,1734727840453,-20958.90601777,0.00021917,2]
[346127421,1734727845869,-48024.0413334,0.00021917,2]
[346127423,1734727845879,-8535.94262801,0.00021917,2]
[346127425,1734727845889,-500.0,0.00021917,6]
[346127426,1734727845899,-500.0,0.00021917,6]
[346127427,1734727845909,-500.0,0.00021917,6]
[346127428,1734727845919,-602.28563472,0.00021917,6]
[346127429,1734727845928,-500.0,0.00021917,6]
[346127432,1734727845938,-500.0,0.00021917,6]
[346127436,1734727845947,-500.0,0.00021917,6]
[346127438,1734727845956,-500.0,0.00021917,6]
[346127441,1734727845966,-500.0,0.00021917,6]
[346127444,1734727845975,-500.0,0.00021917,6]
[346127449,1734727845985,-502.51091718,0.00021917,6]
[346127455,1734727845994,-500.0,0.00021917,6]
[346127460,1734727846004,-256.6484468,0.00021917,6]
[346127464,1734727846014,-501.05594203,0.00021917,6]
[346127469,1734727846023,-500.0,0.00021917,6]
[346127473,1734727846032,-500.0,0.00021917,6]
[346127477,1734727846042,-500.0,0.00021917,6]
[346127481,1734727846051,-152.234324,0.00021917,2]
[346127485,1734727846060,-563.7007935,0.00021917,6]
[346127488,1734727846070,-553.85981844,0.00021917,6]
[346127489,1734727846079,-500.0,0.00021917,6]
[346127491,1734727846092,-500.0,0.00021917,6]
[346127492,1734727846101,-500.0,0.00021917,6]
[346127494,1734727846111,-500.0,0.00021917,6]
[346127496,1734727846120,-215.77947724,0.00021917,6]
[346127498,1734727846129,-500.0,0.00021917,6]
[346127500,1734727846139,-500.0,0.00021917,6]
[346127501,1734727846148,-500.0,0.00021917,6]
[346127502,1734727846159,-525.65980173,0.00021917,6]
[346127504,1734727846168,-500.0,0.00021917,6]
[346127506,1734727846177,-500.0,0.00021917,6]
[346127520,1734727846314,-500.0,0.00021917,6]
[346127521,1734727846325,-215.11515765,0.00021917,6]
[346127522,1734727846335,-566.14,0.00021917,6]
[346127524,1734727846344,-500.0,0.00021917,6]
[346127526,1734727846353,-500.0,0.00021917,6]
[346127528,1734727846363,-500.0,0.00021917,6]
[346127530,1734727846373,-500.0,0.00021917,6]
[346127531,1734727846383,-500.0,0.00021917,6]
[346127533,1734727846392,-500.0,0.00021917,6]
[346127535,1734727846402,-500.0,0.00021917,6]
[346127537,1734727846412,-500.0,0.00021917,6]
[346127539,1734727846421,-500.0,0.00021917,6]
[346127541,1734727846431,-500.0,0.00021917,6]
[346127543,1734727846441,-500.0,0.00021917,6]
[346127545,1734727846450,-500.0,0.00021917,6]
[346127547,1734727846460,-504.99233422,0.00021917,6]
[346127548,1734727846469,-500.0,0.00021917,6]
[346127549,1734727846479,-500.0,0.00021917,6]
[346127550,1734727846488,-500.0,0.00021917,6]
[346127551,1734727846497,-504.84406178,0.00021917,6]
[346127552,1734727846507,-500.0,0.00021917,6]
[346127553,1734727846516,-151.0,0.00021917,2]
[346127554,1734727846526,-151.0,0.00021917,2]
[346127555,1734727846535,-151.0,0.00021917,2]
[346127556,1734727846545,-277.939812,0.00021917,2]
[346127557,1734727846555,-500.0,0.00021917,6]
[346127559,1734727846564,-500.0,0.00021917,6]
[346127561,1734727846574,-508.43841695,0.00021917,6]
[346127563,1734727846583,-500.0,0.00021917,6]
[346127565,1734727846593,-500.0,0.00021917,6]
[346127567,1734727846602,-500.0,0.00021917,6]
[346127569,1734727846611,-151.0,0.00021917,2]
[346127571,1734727846620,-500.0,0.00021917,6]
[346127572,1734727846630,-500.0,0.00021917,6]
[346127575,1734727846639,-500.0,0.00021917,6]
[346127576,1734727846649,-500.0,0.00021917,6]
[346127577,1734727846658,-151.0,0.00021917,2]
[346127578,1734727846668,-500.0,0.00021917,6]
[346127579,1734727846678,-500.0,0.00021917,6]
[346127580,1734727846687,-500.0,0.00021917,6]
[346127581,1734727846697,-500.0,0.00021917,6]
[346127582,1734727846706,-1023.51,0.00021917,7]
[346127583,1734727846716,-151.0,0.00021917,2]
[346127584,1734727846725,-192.9778,0.00021917,2]
[346127585,1734727846735,-500.0,0.00021917,6]
[346127586,1734727846744,-500.0,0.00021917,6]
[346127587,1734727846754,-500.0,0.00021917,6]
[346127588,1734727846765,-793.48,0.00021917,6]